{"text_format":"1","workbook":"xlsx","n_sheets":3,"sheets":["Plan1","Plan2","Plan3"],"not_rendered":{"charts":0,"images":1,"macros":1,"external_links":0,"defined_names":1,"comments":0,"pivot_tables":0},"unopened":[],"bounds":{"document_bytes":16777216,"sheet_cells":100000,"rows_first":2000,"rows_last":500,"rows_between":2000,"halvings":0,"cell_chars":16384,"cell_head_chars":4096},"cells_cut":0,"cells_raw":0,"read":"whole","date_system":"1900"}

{"sheet":"Plan1","index":0,"n_rows":249,"n_cols":25,"rows_kept":249,"cut":false,"hidden":false,"merged":[[136,0,136,25],[135,0,135,5],[135,13,135,20],[126,0,126,25],[127,1,127,4],[129,1,129,4],[131,1,131,4],[134,1,134,4],[132,0,132,25],[133,0,133,25],[134,6,134,12],[134,13,134,20],[127,21,128,25],[120,0,120,25],[121,0,121,5],[121,6,121,16],[121,17,121,25],[124,0,124,25],[125,0,125,23],[125,24,125,25],[122,17,122,25],[123,0,123,25],[122,0,122,5],[122,6,122,16],[113,0,113,25],[114,0,114,23],[114,24,114,25],[115,0,115,25],[116,1,116,4],[117,0,117,25],[116,8,116,25],[119,0,119,23],[119,24,119,25],[107,0,107,25],[108,0,108,25],[109,0,109,23],[109,24,109,25],[110,0,110,25],[111,1,111,4],[112,0,112,25],[111,15,111,25],[101,0,101,25],[102,0,102,23],[102,24,102,25],[103,0,103,25],[104,1,104,4],[104,20,104,25],[106,1,106,4],[104,8,104,17],[106,8,106,17],[96,0,96,23],[96,24,96,25],[97,0,97,25],[58,18,58,25],[61,18,61,25],[59,18,59,25],[62,18,62,25],[90,0,90,23],[90,24,90,25],[91,0,91,25],[92,0,92,5],[92,6,92,16],[92,17,92,25],[76,18,76,25],[77,0,77,25],[89,0,89,25],[87,1,87,7],[80,0,80,25],[81,0,81,25],[82,0,82,25],[83,0,83,25],[84,0,84,23],[84,24,84,25],[85,0,85,25],[86,1,86,7],[75,0,75,25],[76,1,76,4],[78,1,78,4],[59,0,59,10],[59,11,59,17],[60,0,60,25],[61,0,61,8],[86,18,86,25],[86,9,86,16],[67,9,67,23],[69,9,69,23],[76,9,76,16],[78,9,78,17],[67,1,67,4],[69,1,69,4],[71,1,71,4],[62,0,62,8],[63,0,63,25],[64,0,64,25],[65,0,65,23],[65,24,65,25],[66,0,66,25],[62,9,62,17],[29,30,29,50],[30,30,30,50],[28,0,29,25],[25,0,25,7],[27,17,27,25],[27,1,27,16],[25,8,25,15],[20,0,20,25],[14,0,14,25],[15,0,15,5],[15,8,15,15],[16,8,16,15],[24,16,24,25],[25,16,25,25],[21,18,21,25],[22,18,22,25],[16,17,16,25],[16,0,16,6],[22,0,22,17],[18,0,18,25],[19,0,19,23],[19,24,19,25],[11,0,11,25],[13,0,13,8],[12,20,12,25],[10,11,10,17],[2,0,2,25],[3,0,3,25],[1,3,1,20],[1,22,1,25],[15,16,15,25],[4,18,4,25],[5,18,5,25],[9,18,9,25],[10,18,10,25],[4,5,5,16],[13,9,13,19],[4,0,5,4],[6,0,6,25],[12,0,12,8],[7,0,7,23],[7,24,7,25],[9,0,9,10],[8,0,8,25],[9,11,9,17],[10,0,10,10],[12,9,12,17],[26,0,26,25],[21,0,21,17],[23,0,23,25],[24,0,24,5],[24,8,24,15],[45,8,45,15],[39,0,39,25],[40,0,40,25],[44,0,44,25],[42,13,42,25],[42,0,42,10],[43,13,43,25],[41,0,41,25],[35,0,35,25],[17,0,17,25],[13,20,13,25],[49,8,49,10],[30,0,30,25],[49,17,49,20],[49,15,49,16],[47,0,47,25],[48,0,48,5],[36,0,36,25],[37,0,37,23],[37,24,37,25],[38,0,38,25],[34,0,34,25],[49,12,49,14],[46,16,46,25],[43,0,43,12],[49,0,50,5],[48,6,48,25],[46,8,46,15],[46,0,46,7],[45,0,45,7],[45,16,45,25],[31,12,32,25],[33,15,33,18],[33,20,33,21],[51,0,51,25],[52,0,52,25],[53,0,53,25],[61,9,61,17],[143,24,143,25],[144,0,144,25],[145,1,145,4],[146,0,146,25],[147,0,147,25],[139,11,140,25],[139,0,139,10],[140,0,140,10],[54,0,54,25],[55,0,55,25],[56,0,56,23],[56,24,56,25],[57,0,57,25],[58,0,58,10],[58,11,58,17],[79,0,79,25],[72,0,72,25],[73,0,73,25],[74,0,74,23],[74,24,74,25],[152,21,152,22],[152,19,152,20],[152,17,152,18],[152,14,152,16],[152,12,152,13],[152,10,152,11],[152,7,152,9],[152,5,152,6],[150,21,151,22],[151,5,151,6],[87,9,87,20],[151,7,151,9],[151,10,151,11],[150,4,150,13],[151,12,151,13],[150,17,151,18],[150,14,151,16],[138,7,138,9],[150,19,151,20],[145,8,145,25],[137,0,137,25],[138,24,138,25],[135,6,135,12],[138,0,138,5],[138,11,138,23],[141,0,141,25],[148,0,148,23],[148,24,148,25],[149,0,149,25],[150,3,151,3],[150,24,151,25],[150,23,151,23],[142,0,142,25],[143,0,143,23],[154,5,154,6],[154,7,154,9],[154,10,154,11],[154,12,154,13],[154,14,154,16],[154,17,154,18],[154,19,154,20],[154,21,154,22],[153,5,153,6],[153,7,153,9],[153,10,153,11],[153,12,153,13],[153,14,153,16],[153,17,153,18],[153,19,153,20],[153,21,153,22],[156,5,156,6],[156,7,156,9],[156,10,156,11],[156,12,156,13],[156,14,156,16],[156,17,156,18],[156,19,156,20],[156,21,156,22],[155,5,155,6],[155,7,155,9],[155,10,155,11],[155,12,155,13],[155,14,155,16],[155,17,155,18],[155,19,155,20],[155,21,155,22],[158,5,158,6],[158,7,158,9],[158,10,158,11],[158,12,158,13],[158,14,158,16],[158,17,158,18],[158,19,158,20],[158,21,158,22],[157,5,157,6],[157,7,157,9],[157,10,157,11],[157,12,157,13],[157,14,157,16],[157,17,157,18],[157,19,157,20],[157,21,157,22],[160,21,160,22],[159,5,159,6],[159,7,159,9],[159,10,159,11],[159,12,159,13],[159,14,159,16],[159,17,159,18],[159,19,159,20],[159,21,159,22],[173,0,173,10],[173,11,173,25],[93,0,93,5],[93,6,93,16],[93,17,93,25],[94,0,94,25],[100,0,100,25],[162,24,162,25],[164,0,164,25],[167,11,167,25],[167,0,167,10],[162,0,163,23],[150,0,157,0],[152,24,160,25],[135,21,135,25],[134,21,134,25],[129,21,131,25],[160,5,160,6],[160,7,160,9],[160,10,160,11],[160,12,160,13],[160,14,160,16],[160,17,160,18],[160,19,160,20],[169,0,169,10],[170,0,170,10],[169,11,169,25],[170,11,170,25],[168,11,168,25],[168,0,168,10],[171,0,171,10],[171,11,171,25],[172,0,172,10],[172,11,172,25],[174,0,174,10],[174,11,174,25],[175,0,175,10],[175,11,175,25],[176,0,176,10],[176,11,176,25],[177,0,177,10],[177,11,177,25],[178,0,178,10],[178,11,178,25],[165,0,165,25],[166,11,166,25],[166,0,166,10],[187,0,187,25],[150,1,151,2],[152,1,152,2],[153,1,153,2],[154,1,154,2],[155,1,155,2],[156,1,156,2],[157,1,157,2],[159,0,159,2],[160,0,160,2],[158,0,158,2],[179,0,179,10],[179,11,179,25],[180,0,180,10],[180,11,180,25],[181,0,181,10],[181,11,181,25],[182,0,182,10],[182,11,182,25],[183,0,183,10],[183,11,183,25],[188,0,188,1],[188,2,188,25],[193,0,193,25],[194,0,194,10],[194,11,194,25],[195,0,195,10],[195,11,195,25],[190,0,191,25],[184,0,184,10],[184,11,184,25],[185,0,185,10],[185,11,185,25],[196,0,196,10],[196,11,196,25],[197,0,197,10],[197,11,197,25],[198,0,198,10],[198,11,198,25],[199,0,199,10],[199,11,199,25],[200,0,200,10],[200,11,200,25],[202,0,202,10],[202,11,202,25],[203,0,203,10],[203,11,203,25],[204,0,204,10],[204,11,204,25],[205,0,205,10],[205,11,205,25],[208,0,208,10],[208,11,208,25],[207,0,207,10],[207,11,207,25],[206,0,206,10],[206,11,206,25],[222,6,222,10],[223,6,223,10],[224,6,224,10],[219,0,220,10],[219,11,220,23],[222,11,222,20],[209,0,209,10],[209,11,209,25],[210,0,210,10],[210,11,210,25],[222,2,222,3],[223,2,223,3],[201,0,201,10],[201,11,201,25],[222,0,222,1],[223,13,223,25],[224,13,224,25],[223,4,223,5],[224,4,224,5],[226,0,226,1],[227,0,227,1],[226,2,226,5],[227,2,227,25],[219,24,219,25],[218,0,218,25],[211,0,211,10],[211,11,211,25],[212,0,212,10],[212,11,212,25],[213,0,213,10],[213,11,213,25],[215,0,215,25],[216,0,216,1],[216,2,216,25],[224,2,224,3],[222,4,222,5],[240,0,240,25],[241,0,241,25],[242,0,242,25],[243,0,243,25],[244,0,244,25],[245,0,245,25],[246,0,246,25],[247,0,247,25],[248,0,248,25],[98,6,98,16],[99,0,99,5],[99,8,99,10],[268,0,268,25],[127,13,128,20],[127,6,128,12],[129,6,131,12],[129,13,131,20],[264,0,264,25],[265,0,265,25],[266,0,266,25],[267,0,267,25],[228,0,228,25],[229,0,229,25],[230,0,230,25],[231,0,231,25],[232,0,232,25],[233,0,233,25],[234,0,234,25],[235,0,235,25],[236,0,236,25],[237,0,237,25],[238,0,238,25],[239,0,239,25]]}
[]
[null,null,null,"Pedido de Serviços Diversos - Entradas Coletivas",null,null,null,null,null,null,null,null,null,null,null,null,null,null,null,null,null,null,"Kit Técnico PSD-C"]
[]
[]
["Protocolo de atendimento",null,null,null,null,null,null,null,null,null,null,null,null,null,null,null,null,null," Data"]
[]
[]
["Endereço da instalação",null,null,null,null,null,null,null,null,null,null,null,null,null,null,null,null,null,null,null,null,null,null,null,"CAMPO A"]
[]
["Logradouro",null,null,null,null,null,null,null,null,null,null," Nº",null,null,null,null,null,null," Complemento"]
[]
[]
["Bairro",null,null,null,null,null,null,null,null," Município",null,null,null,null,null,null,null,null,null,null," CEP"]
[]
[]
["Código do cliente (1)",null,null,null,null,null,null,null," Número da instalação",null,null,null,null,null,null,null," Número do medidor existente (2)"]
[]
[]
[]
["Dados do cliente",null,null,null,null,null,null,null,null,null,null,null,null,null,null,null,null,null,null,null,null,null,null,null,"CAMPO B"]
[]
["Nome",null,null,null,null,null,null,null,null,null,null,null,null,null,null,null,null,null," CNPJ / CPF"]
[]
[]
["Telefone fixo",null,null,null,null,null,null,null," Telefone celular",null,null,null,null,null,null,null," E-mail"]
[]
[]
["Eu,  ",null,null,null,null,null,null,null,null,null,null,null,null,null,null,null,null,"autorizo o profissional mencionado no campo C"]
["como responsável técnico para tratar junto a Light dos assuntos pertinentes a instalação de entrada situada no endereço acima (campo A)"]
[]
[]
["Assinatura do cliente",null,null,null,null,null,null,null,null,null,null,null," Autorizo o envio de informações sobre o andamento da solicitação, seja por e-mail ou celular informados nos campos B e C."]
[]
[null,null,null,null,null,null,null,null,null,null,null,null,null,null,null,"Sim",null,null,null,null,"Não"]
[]
[]
[]
["Dados do responsável técnico",null,null,null,null,null,null,null,null,null,null,null,null,null,null,null,null,null,null,null,null,null,null,null,"CAMPO C"]
[]
["Nome"]
[]
[]
["Profissão",null,null,null,null,null,null,null,null,null,null,null,null," Número do registro profissional"]
[]
[]
["Telefone fixo",null,null,null,null,null,null,null," Telefone celular",null,null,null,null,null,null,null," E-mail"]
[]
[]
["Nº da ART, RRT ou TRT (3)",null,null,null,null,null," Tipo de serviço (4)"]
[null,null,null,null,null,null,null,null,"  Estudo",null,null,null,"  Projeto",null,null,null,null,"  Execução"]
[]
[]
["Assinatura do responsável técnico"]
[]
[]
[]
["Endereço de correspondência",null,null,null,null,null,null,null,null,null,null,null,null,null,null,null,null,null,null,null,null,null,null,null,"CAMPO D"]
[]
["Logradouro",null,null,null,null,null,null,null,null,null,null," Nº",null,null,null,null,null,null," Complemento"]
[]
[]
["Bairro",null,null,null,null,null,null,null,null," Município",null,null,null,null,null,null,null,null," CEP"]
[]
[]
[]
["Tipo de solicitação",null,null,null,null,null,null,null,null,null,null,null,null,null,null,null,null,null,null,null,null,null,null,null,"CAMPO E"]
[]
[null," Ligação nova (5)",null,null,null,null,null,null,null," Realocação de medidor / ponto de entrega (8)"]
[]
[null," Aumento de carga (6)",null,null,null,null,null,null,null," Manutenção / reforma (9)"]
[]
[null," Diminuição de carga (7)"]
[]
[]
["Atividade(s) da(s) unidade(s) consumidora(s)",null,null,null,null,null,null,null,null,null,null,null,null,null,null,null,null,null,null,null,null,null,null,null,"CAMPO F"]
[]
[null," Residencial",null,null,null,null,null,null,null," Industrial",null,null,null,null,null,null,null,null," Poder público"]
[]
[null," Comercial",null,null,null,null,null,null,null," Rural"]
[]
[]
["Descrição da(s) atividade(s) da(s) unidade(s) consumidora(s) (10)"]
[]
[]
["Tensão de atendimento",null,null,null,null,null,null,null,null,null,null,null,null,null,null,null,null,null,null,null,null,null,null,null,"CAMPO G"]
[]
[null," 220-127V (área urbana residencial",null,null,null,null,null,null,null," 380-220V (área urbana ",null,null,null,null,null,null,null,null," 230-115V (área rural)"]
[null,"e não residencial)",null,null,null,null,null,null,null,"não residencial)"]
[]
[]
["Carga instalada (11)",null,null,null,null,null,null,null,null,null,null,null,null,null,null,null,null,null,null,null,null,null,null,null,"CAMPO H"]
[]
["Ligada (kW)",null,null,null,null,null," A ligar (kW)",null,null,null,null,null,null,null,null,null,null," Total (kW)"]
[null,null,null,null,null,null,null,null,null,null,null,null,null,null,null,null,null,{"$f":"A94+G94","v":0}]
[]
[]
["Demanda calculada (12)",null,null,null,null,null,null,null,null,null,null,null,null,null,null,null,null,null,null,null,null,null,null,null,"CAMPO I"]
[]
["Total (kVA)",null,null,null,null,null," Método utilizado para cálculo da demanda"]
[null,null,null,null,null,null,null,null," RECON-BT",null,null,null,null,null," Outro"]
[]
[]
["Tipo de rede de distribuição da Light",null,null,null,null,null,null,null,null,null,null,null,null,null,null,null,null,null,null,null,null,null,null,null,"CAMPO J"]
[]
[null," Aérea",null,null,null,null,null,null," Aérea e subterrânea (mista)"]
[]
[null," Subterrânea",null,null,null,null,null,null," Inexistente"]
[]
[]
["Tipo de ramal de ligação",null,null,null,null,null,null,null,null,null,null,null,null,null,null,null,null,null,null,null,null,null,null,null,"CAMPO K"]
[]
[null," Aéreo",null,null,null,null,null,null," Subterrâneo",null,null,null,null,null,null," Subterrâneo derivado de rede aérea (13)"]
[]
[]
["Sistema de medição",null,null,null,null,null,null,null,null,null,null,null,null,null,null,null,null,null,null,null,null,null,null,null,"CAMPO L"]
[]
[null," Convencional",null,null,null,null,null,null," SMLC (Sistema de Medição e Leitura Centralizada) (14)"]
[]
[]
["Número de medidores",null,null,null,null,null,null,null,null,null,null,null,null,null,null,null,null,null,null,null,null,null,null,null,"CAMPO M"]
[]
["Instalados",null,null,null,null,null," A instalar",null,null,null,null,null,null,null,null,null,null," Total "]
[null,null,null,null,null,null,null,null,null,null,null,null,null,null,null,null,null,{"$f":"A123+G123","v":0}]
[]
[]
["Material dimensionado para o ramal da entrada coletiva",null,null,null,null,null,null,null,null,null,null,null,null,null,null,null,null,null,null,null,null,null,null,null,"CAMPO N"]
[]
[null," Poste (15)",null,null,null,null," Tipo de material",null,null,null,null,null,null,"Altura",null,null,null,null,null,null,null," Carga nominal (daN)"]
[]
[null," Pontalete (15)"]
[]
[null," Fachada (15)"]
[]
[]
[null," Dutos (16)",null,null,null,null," Quantidade",null,null,null,null,null,null," Seção (Pol.)",null,null,null,null,null,null,null," Arranjo (V x H)"]
[]
[]
[]
["Data pretendida para a ligação",null,null,null,null,null,null,"CAMPO O",null,null,null," Informações adicionais",null,null,null,null,null,null,null,null,null,null,null,null,"CAMPO P"]
["dia/mês/ano"]
[]
[]
[]
["Projeto da instalação de entrada coletiva",null,null,null,null,null,null,null,null,null,null,null,null,null,null,null,null,null,null,null,null,null,null,null,"CAMPO Q"]
[]
[null," Simplificado (17)",null,null,null,null,null,null," Completo (18)"]
[]
[]
["Quadro de Cargas e Demandas (Projeto de Entrada Simplificado)",null,null,null,null,null,null,null,null,null,null,null,null,null,null,null,null,null,null,null,null,null,null,null,"CAMPO R"]
[]
["Agupamento","Identificação das unidades",null,"Área    (m²)","Carga Instalada",null,null,null,null,null,null,null,null,null,"Demanda da Unidade (kVA)",null,null,"Proteção (A)",null,"Condutores N x (1 x mm²)",null,"Nº de fases",null,"Tipo de serviço solicitado","Padrão (Tipo)"]
[null,null,null,null,"Iluminação (kVA)","Resistivo          (kVA)",null,"Ar condicionado (kVA)",null,null,"Motores     (kVA)",null,"Total                                           (kW)"]
[null,null,null,null,null,null,null,null,null,null,null,null,{"$f":"(E153+F153+H153+K153)*0.92","v":0}]
[null,null,null,null,null,null,null,null,null,null,null,null,{"$f":"(E154+F154+H154+K154)*0.92","v":0}]
[null,null,null,null,null,null,null,null,null,null,null,null,0]
[null,null,null,null,null,null,null,null,null,null,null,null,0]
[null,null,null,null,null,null,null,null,null,null,null,null,0]
[null,null,null,null,null,null,null,null,null,null,null,null,0]
["Total do Agrupamento",null,null,{"$f":"D153+D154+D155+D156+D157+D158","v":0},{"$f":"E153+E154+E155+E156+E157+E158","v":0},{"$f":"F153+F154+F155+F156+F157+F158","v":0},null,{"$f":"H153+H154+H155+H156+H157+H158","v":0},null,null,{"$f":"K153+K154+K155+K156+K157+K158","v":0},null,{"$f":"M153+M154+M155+M156+M157+M158","v":0}]
["serviço",null,null,null,null,null,null,null,null,null,null,null,{"$f":"(E160+F160+H160+K160)*0.92","v":0}]
["Total da Instalação",null,null,{"$f":"D159+D160","v":0},{"$f":"E159+E160","v":0},{"$f":"F159+F160","v":0},null,{"$f":"H159+H160","v":0},null,null,{"$f":"K159+K160","v":0},null,{"$f":"M159+M160","v":0}]
[]
["Descrição da Carga e Cálculo de Demanda das Unidades Consumidoras Residenciais (19)",null,null,null,null,null,null,null,null,null,null,null,null,null,null,null,null,null,null,null,null,null,null,null,"CAMPO S"]
[]
[]
[]
[]
["Descrição da carga instalada",null,null,null,null,null,null,null,null,null,null,"  Cálculo de demanda"]
[]
["Iluminação e tomadas",null,null,null,null,null,null,null,null,null,null,"  d1"]
[]
[]
["Aparelhos resistivos",null,null,null,null,null,null,null,null,null,null,"  d2"]
[]
[]
["Aparelhos de ar condicionado",null,null,null,null,null,null,null,null,null,null,"  d3"]
[]
[]
["Aparelhos de ar condicionado central",null,null,null,null,null,null,null,null,null,null,"  d4"]
[]
[]
["Motores",null,null,null,null,null,null,null,null,null,null,"  d5"]
[]
[]
["Máquinas de solda e aparelhos de raio-x",null,null,null,null,null,null,null,null,null,null,"  d6"]
[]
[]
["DT = (d1 + d2 + d3 + d4 + d5 + d6) kVA"]
["DT = "]
[]
["Descrição da Carga e Cálculo de Demanda do Serviço"]
[]
[]
[]
[]
["Descrição da carga instalada",null,null,null,null,null,null,null,null,null,null,"  Cálculo de demanda"]
[]
["Iluminação e tomadas",null,null,null,null,null,null,null,null,null,null,"  d1"]
[]
[]
["Aparelhos resistivos",null,null,null,null,null,null,null,null,null,null,"  d2"]
[]
[]
["Aparelhos de ar condicionado",null,null,null,null,null,null,null,null,null,null,"  d3"]
[]
[]
["Aparelhos de ar condicionado central",null,null,null,null,null,null,null,null,null,null,"  d4"]
[]
[]
["Motores",null,null,null,null,null,null,null,null,null,null,"  d5"]
[]
[]
["Máquinas de solda e aparelhos de raio-x",null,null,null,null,null,null,null,null,null,null,"  d6"]
[]
[]
["DT = (d1 + d2 + d3 + d4 + d5 + d6) kVA"]
["DT = "]
[]
[]
["Demanda de Proteção Geral (20)",null,null,null,null,null,null,null,null,null,null,"   Demanda do Ramal",null,null,null,null,null,null,null,null,null,null,null,null,"CAMPO T"]
[]
[]
["DPG ",null,"    Nº de apartamentos",null,null,null,null,null,null,null,null,"   DR = (DPG + Dserviço) x 0,90"]
[null,null,"    Tabela 6.11 ou 6.12",null,null,null,"kVA / m²",null,null,null,null,"   DR = "]
[null,null,"   Fator de diversidade",null,null,null,"(Tabela 6.13)"]
[]
["DPG =",null," kVA/m² x Fator de diversidade"]
["DPG ="]
["Saiba como preencher o formulário"]
["1 - Preencher, com o código do responsável pela entrada coletiva, somente quando a unidade consumidora já estiver com o fornecimento de energia elétrica estabelecido. "]
["2 - Preencher, com o número do medidor do responsável pela entrada coletiva, somente quando a unidade consumidora já estiver com medidor de energia elétrica."]
["3 - A anotação de Responsabilidade Técnica (ART), expedida pelo CREA, Registro de Responsabilidade técnica (RRT), expedido pelo CAU ou Termo de Responsabilidade Técnica (TRT), expedido pelo CFT, é o documento que registra as realizações do profissional habilitado, permitindo a caracterização dos limites de responsabilidade e da participação técnica em cada obra ou serviço. Obs: Uma via da ART, RRT ou TRT devidamente quitada, deve ser entregue juntamente com este formulário de solicitação."]
["4 - Neste item devem ser assinalados os tipos de serviços descritos na ART, RRT ou TRT. Nos casos em que as etapas da obra não corresponderem a um único profissional, será necessário preencher mais um formulário deste para cada etapa/profissional responsável."]
["5 - Assinalar quando a solicitação for para atendimento ao primeiro fornecimento de energia elétrica, residencial ou não residencial, localizada em propriedade de entrada coletiva."]
["6 - Assinalar quando a solicitação for para aumento de carga, residencial ou não residencial, localizada em propriedade de entrada coletiva."]
["7 - Assinalar quando a solicitação for para diminuição de carga, residencial ou não residencial, localizada em propriedade de entrada coletiva."]
["8 - Assinalar quando a solicitação for mudança do ponto de entrega/medição de uma entrada coletiva existente, por conveniência do consumidor, por determinação do Poder Público e/ou pela caracterização de risco à segurança."]
["9 - Assinalar quando a solicitação for manutenção e/ou reforma da instalação de entrada coletiva em função de modernização, falha ou necessidade de manutenção de materiais e equipamentos."]
["10 - Descrição das atividades exercidas nas unidades consumidoras (exemplo: escritório, Loja, restaurante e etc.)."]
["11 - A carga total a ser informada é o resultado da soma das cargas individuais de todas as unidades consumidoras da entrada coletiva. Nota: Para todas as solicitações de aumento de carga, a carga ligada também deverá ser informada, sendo a mesma determinada por projeto aprovado anteriormente pela Light, ou na sua inexistência ou insuficiência de dados, através da capacidade nominal do disjuntor (A) convertida em kW. "]
["12 - A demanda total deve ser calculada conforme a Regulamentação para Fornecimento de Energia Elétrica para Consumidores de Baixa Tensão – RECON-BT."]
["13 - Preencher apenas quando a solicitação for por conveniência do consumidor."]
["14 - Para todas as solicitações de ligação nova em que, por conveniência do cliente, for empregada medição pela tecnologia SMLC (Sistema de Medição Leitura Centralizada) o cliente deve manifestar por escrito a opção por esse tipo de medição, conforme modelo de carta disposto no anexo VI  da RECON-BT."]
["15 - Material utilizado em ligações aéreas. Discriminar o tipo de ancoramento, tipo de material (aço, concreto, etc.), altura e carga nominal (daN)."]
["16 - Material utilizado em ligações subterrâneas. Discriminar a quantidade de duto/seção e arranjo do banco de dutos (vertical x horizontal)."]
["17 - Para entradas coletivas que possuam até 6 (seis) unidades consumidoras, exclusivamente residenciais, mais a unidade de serviço (totalizando 7 unidades) com demanda individual até 15 kVA, ficam dispensadas da apresentação do Projeto de Entrada completo. Para esses casos o responsável técnico deve preencher os campos Q, R e S e em anexo ao Kit Técnico apresentar um Projeto Simplificado contendo planta de localização e diagrama unifilar."]
["18 - Para entradas coletivas que não se enquadrem no item acima ficam dispensados o preenchimento dos campos Q, R e S, sendo necessário apresentar, em anexo ao Kit Técnico, projeto completo de acordo com o Fascículo 03 da Regulamentação para Fornecimento de Energia Elétrica para Consumidores de Baixa Tensão – RECON-BT."]
["19 - Caso as unidades residenciais possuam cargas diferentes, será necessário apresentar a descrição da carga instalada e cálculo de demanda das respectivas unidades, em anexo ao Kit Técnico."]
["20 - Para o cálculo de demanda da proteção geral em entrada coletiva residencial com até 3 (três) unidades consumidoras deve ser utilizado o método de avaliação da Seção “A” e para entrada coletiva residencial superior a 3 (três) unidades consumidoras deve ser utilizado o método de avaliação da Seção “B”, de acordo com a Regulamentação para Fornecimento de Energia Elétrica para Consumidores de Baixa Tensão – RECON-BT."]

{"sheet":"Plan2","index":1,"n_rows":0,"n_cols":0,"rows_kept":0,"cut":false,"hidden":false,"merged":[]}

{"sheet":"Plan3","index":2,"n_rows":0,"n_cols":0,"rows_kept":0,"cut":false,"hidden":false,"merged":[]}